[Event "Fast Chess"]
[Site "ChessKid.com"]
[Date "2020.04.06"]
[Round "4"]
[White "Hlinka, Patrick"]
[Black "Li, Patrick"]
[Result "1-0"]
[ECO "C20"]
[WhiteElo "1111"]
[BlackElo "923"]
[PlyCount "31"]
[EventDate "2020.??.??"]
[TimeControl "900"]
[WhiteClock "0:09:31"]
[BlackClock "0:13:08"]

1. e4 {[%emt 0:00:00]} e5 {[%emt 0:00:01]} 2. Bc4 {[%emt 0:00:02]} Nc6 {
[%emt 0:00:12]} 3. Qh5 {[%emt 0:00:03]} g6 {[%emt 0:00:05]} 4. Qf3 {[%emt 0:00:
03]} Nf6 {[%emt 0:00:05]} 5. g4 {[%emt 0:00:03]} Nd4 {[%emt 0:00:07]} 6. Qd3 {
[%emt 0:00:14]} Nxg4 {[%emt 0:00:13]} 7. Qg3 {[%emt 0:00:13]} Nxc2+ {[%emt 0:
00:10]} 8. Kd1 {[%emt 0:00:17]} Nxa1 {[%emt 0:00:05]} 9. Qxg4 {[%emt 0:00:07]}
d5 {[%emt 0:00:05]} 10. exd5 {[%emt 0:00:04]} Bd7 {[%emt 0:00:02]} 11. Qf3 {
[%emt 0:00:08]} Ba4+ {[%emt 0:00:49]} 12. b3 {[%emt 0:00:16]} Bb5 {[%emt 0:00:
19]} 13. Bxb5+ {[%emt 0:00:06]} c6 {[%emt 0:00:07]} 14. dxc6 {[%emt 0:00:03]}
bxc6 {[%emt 0:01:52]} 15. Bxc6+ {[%emt 0:00:08]} Qd7 {[%emt 0:01:18]} 16. Bxd7+
{[%emt 0:00:05] GoldMusicalTaxi won by resignation} 1-0

[Event "Fast Chess"]
[Site "ChessKid.com"]
[Date "2020.04.07"]
[Round "1"]
[White "Li, Tobias"]
[Black "Hlinka, Patricia"]
[Result "1-0"]
[ECO "C40"]
[WhiteElo "1222"]
[BlackElo "949"]
[PlyCount "29"]
[EventDate "2020.??.??"]
[TimeControl "600"]
[WhiteClock "0:07:25"]
[BlackClock "0:09:13"]

1. e4 {[%emt 0:00:00]} e5 {[%emt 0:00:01]} 2. Nf3 {[%emt 0:00:01]} f6 {[%emt 0:
00:05]} 3. Nxe5 {[%emt 0:00:05]} fxe5 {[%emt 0:00:05]} 4. Qh5+ {[%emt 0:00:02]}
g6 {[%emt 0:00:08]} 5. Qxe5+ {[%emt 0:00:02]} Kf7 {[%emt 0:00:18]} 6. Qxh8 {
[%emt 0:00:03]} d6 {[%emt 0:00:10]} 7. Qxh7+ {[%emt 0:00:04]} Kf6 {[%emt 0:00:
08]} 8. Qxg8 {[%emt 0:00:04]} Ke7 {[%emt 0:00:12]} 9. Qxg6 {[%emt 0:00:07]} a5
{[%emt 0:00:18]} 10. d3 {[%emt 0:00:03]} a4 {[%emt 0:00:07]} 11. Bg5+ {[%emt 0:
00:03]} Kd7 {[%emt 0:00:28]} 12. Bxd8 {[%emt 0:00:02]} Kxd8 {[%emt 0:00:04]}
13. Be2 {[%emt 0:00:07]} Bd7 {[%emt 0:00:07]} 14. Bh5 {[%emt 0:00:01]} Bc8 {
[%emt 0:00:24]} 15. Qe8# {[%emt 0:00:04] OnlyHungryKiwi won by checkmate} 1-0

[Event "Fast Chess"]
[Site "ChessKid.com"]
[Date "2020.04.07"]
[Round "2"]
[White "Georgiev, Maximilian"]
[Black "Li, Patrick"]
[Result "1/2-1/2"]
[ECO "C57"]
[WhiteElo "1353"]
[BlackElo "936"]
[PlyCount "108"]
[EventDate "2020.??.??"]
[TimeControl "600"]
[WhiteClock "0:03:50"]
[BlackClock "0:06:36"]

1. e4 {[%emt 0:00:00]} e5 {[%emt 0:00:01]} 2. Nf3 {[%emt 0:00:01]} Nc6 {
[%emt 0:00:02]} 3. Bc4 {[%emt 0:00:01]} Nf6 {[%emt 0:00:01]} 4. Ng5 {[%emt 0:
00:01]} d5 {[%emt 0:00:03]} 5. exd5 {[%emt 0:00:01]} Nxd5 {[%emt 0:00:03]} 6.
Qf3 {[%emt 0:00:02]} Nf6 {[%emt 0:00:05]} 7. Nxf7 {[%emt 0:00:03]} Qe7 {
[%emt 0:00:05]} 8. Nxh8 {[%emt 0:00:02]} Qc5 {[%emt 0:00:17]} 9. d3 {[%emt 0:
00:05]} Bg4 {[%emt 0:00:16]} 10. Qf5 {[%emt 0:00:08]} Bxf5 {[%emt 0:00:04]} 11.
O-O {[%emt 0:00:04]} Qd4 {[%emt 0:00:17]} 12. c3 {[%emt 0:00:04]} Qg4 {[%emt 0:
00:13]} 13. h3 {[%emt 0:00:04]} Qf4 {[%emt 0:00:12]} 14. Bxf4 {[%emt 0:00:03]}
exf4 {[%emt 0:00:05]} 15. Nf7 {[%emt 0:00:06]} Na5 {[%emt 0:00:12]} 16. Nh6 {
[%emt 0:00:13]} Nxc4 {[%emt 0:00:04]} 17. Nxf5 {[%emt 0:00:01]} Nxb2 {[%emt 0:
00:04]} 18. Nd2 {[%emt 0:00:04]} Na4 {[%emt 0:00:07]} 19. Rab1 {[%emt 0:00:04]}
Nxc3 {[%emt 0:00:01]} 20. Rxb7 {[%emt 0:00:03]} Nxa2 {[%emt 0:00:12]} 21. Rxc7
{[%emt 0:00:02]} Nb4 {[%emt 0:00:06]} 22. Nd6+ {[%emt 0:00:02]} Bxd6 {[%emt 0:
00:06]} 23. Re1+ {[%emt 0:00:07]} Kd8 {[%emt 0:00:07]} 24. Rb7 {[%emt 0:00:06]}
Nxd3 {[%emt 0:00:13]} 25. Re2 {[%emt 0:00:05]} Rc8 {[%emt 0:00:16]} 26. Rxg7 {
[%emt 0:00:08]} Rc1+ {[%emt 0:00:05]} 27. Kh2 {[%emt 0:00:03]} f3+ {[%emt 0:00:
08]} 28. g3 {[%emt 0:00:08]} fxe2 {[%emt 0:00:09]} 29. Nf3 {[%emt 0:00:09]} a5
{[%emt 0:00:20]} 30. Ra7 {[%emt 0:00:06]} Rc3 {[%emt 0:00:08]} 31. Rxa5 {
[%emt 0:00:06]} Nc1 {[%emt 0:00:09]} 32. Ra1 {[%emt 0:00:06]} Nb3 {[%emt 0:00:
06]} 33. Re1 {[%emt 0:00:07]} Rxf3 {[%emt 0:00:17]} 34. Rxe2 {[%emt 0:00:03]}
Nc1 {[%emt 0:00:05]} 35. Rc2 {[%emt 0:00:04]} Nd3 {[%emt 0:00:11]} 36. Kg2 {
[%emt 0:00:03]} Ne1+ {[%emt 0:00:10]} 37. Kf1 {[%emt 0:00:04]} Nxc2 {[%emt 0:
00:03]} 38. Ke2 {[%emt 0:00:05]} Rb3 {[%emt 0:00:14]} 39. f4 {[%emt 0:00:04]}
Rxg3 {[%emt 0:00:05]} 40. Kd2 {[%emt 0:00:02]} Rg2+ {[%emt 0:00:06]} 41. Kc3 {
[%emt 0:00:03]} Bxf4 {[%emt 0:00:15]} 42. h4 {[%emt 0:00:05]} Rh2 {[%emt 0:00:
05]} 43. h5 {[%emt 0:00:02]} Rxh5 {[%emt 0:00:02]} 44. Kxc2 {[%emt 0:00:01]}
Rc5+ {[%emt 0:00:01]} 45. Kd3 {[%emt 0:00:02]} Rg5 {[%emt 0:00:06]} 46. Kd4 {
[%emt 0:00:05]} h5 {[%emt 0:00:01]} 47. Kc4 {[%emt 0:00:03]} h4 {[%emt 0:00:00]
} 48. Kd3 {[%emt 0:00:03]} h3 {[%emt 0:00:00]} 49. Ke2 {[%emt 0:00:00]} h2 {
[%emt 0:00:00]} 50. Kf3 {[%emt 0:00:02]} h1=Q+ {[%emt 0:00:01]} 51. Kxf4 {
[%emt 0:00:01]} Rg4+ {[%emt 0:00:04]} 52. Kf5 {[%emt 0:00:02]} Qf1+ {[%emt 0:
00:03]} 53. Ke6 {[%emt 0:00:04]} Qe1+ {[%emt 0:00:04]} 54. Kf7 {[%emt 0:00:03]}
Nd7 {[%emt 0:00:03] Game drawn by stalemate} 1/2-1/2

[Event "Fast Chess"]
[Site "ChessKid.com"]
[Date "2020.04.07"]
[Round "2"]
[White "Sasse, Gabriel"]
[Black "Li, Tobias"]
[Result "1-0"]
[ECO "C50"]
[WhiteElo "1277"]
[BlackElo "1215"]
[PlyCount "117"]
[EventDate "2020.??.??"]
[TimeControl "600"]
[WhiteClock "0:01:51"]
[BlackClock "0:04:56"]

1. e4 {[%emt 0:00:01]} e5 {[%emt 0:00:02]} 2. Nf3 {[%emt 0:00:01]} Nc6 {
[%emt 0:00:02]} 3. Bc4 {[%emt 0:00:01]} Bc5 {[%emt 0:00:03]} 4. Nc3 {[%emt 0:
00:02]} h6 {[%emt 0:00:02]} 5. h3 {[%emt 0:00:02]} Nf6 {[%emt 0:00:02]} 6. O-O
{[%emt 0:00:03]} O-O {[%emt 0:00:02]} 7. Ne1 {[%emt 0:00:04]} Nb4 {[%emt 0:00:
19]} 8. Qf3 {[%emt 0:00:06]} c6 {[%emt 0:00:08]} 9. Qg3 {[%emt 0:00:02]} d5 {
[%emt 0:00:07]} 10. exd5 {[%emt 0:00:02]} Nfxd5 {[%emt 0:00:04]} 11. Nxd5 {
[%emt 0:00:02]} cxd5 {[%emt 0:00:01]} 12. Bb3 {[%emt 0:00:02]} Nc6 {[%emt 0:00:
10]} 13. d3 {[%emt 0:00:02]} Qf6 {[%emt 0:00:11]} 14. c3 {[%emt 0:00:14]} Bd7 {
[%emt 0:00:22]} 15. Nc2 {[%emt 0:00:04]} Bf5 {[%emt 0:00:16]} 16. Ne3 {[%emt 0:
00:05]} d4 {[%emt 0:00:23]} 17. Nxf5 {[%emt 0:00:07]} Qxf5 {[%emt 0:00:08]} 18.
Bxh6 {[%emt 0:00:03]} Qf6 {[%emt 0:00:01]} 19. Bg5 {[%emt 0:00:07]} Qg6 {
[%emt 0:00:03]} 20. cxd4 {[%emt 0:00:05]} exd4 {[%emt 0:00:03]} 21. Rac1 {
[%emt 0:00:02]} Bb6 {[%emt 0:00:02]} 22. Bd5 {[%emt 0:00:06]} Rac8 {[%emt 0:00:
03]} 23. Be4 {[%emt 0:00:08]} Qe6 {[%emt 0:00:13]} 24. Rce1 {[%emt 0:00:04]}
Ne5 {[%emt 0:00:33]} 25. Bf4 {[%emt 0:00:05]} Bc7 {[%emt 0:00:11]} 26. Qh4 {
[%emt 0:00:20]} Ng6 {[%emt 0:00:15]} 27. Qg3 {[%emt 0:00:09]} Bxf4 {[%emt 0:00:
19]} 28. Qf3 {[%emt 0:00:14]} Bc7 {[%emt 0:00:09]} 29. Bxb7 {[%emt 0:00:03]}
Qxa2 {[%emt 0:00:12]} 30. Bxc8 {[%emt 0:00:03]} Rxc8 {[%emt 0:00:03]} 31. Qf5 {
[%emt 0:00:07]} Rf8 {[%emt 0:00:05]} 32. Rc1 {[%emt 0:00:04]} Bb6 {[%emt 0:00:
04]} 33. Rc8 {[%emt 0:00:04]} Rxc8 {[%emt 0:00:04]} 34. Qxc8+ {[%emt 0:00:01]}
Kh7 {[%emt 0:00:01]} 35. Qb7 {[%emt 0:00:05]} Qxb2 {[%emt 0:00:09]} 36. Qxf7 {
[%emt 0:00:03]} Qc3 {[%emt 0:00:01]} 37. Rd1 {[%emt 0:00:16]} Qc2 {[%emt 0:00:
07]} 38. Rf1 {[%emt 0:00:11]} Qxd3 {[%emt 0:00:02]} 39. Qd5 {[%emt 0:00:10]}
Nf4 {[%emt 0:00:19]} 40. Qd6 {[%emt 0:00:04]} Qe4 {[%emt 0:00:23]} 41. Rd1 {
[%emt 0:00:12]} Ba5 {[%emt 0:00:14]} 42. Qa3 {[%emt 0:00:07]} Bb6 {[%emt 0:00:
22]} 43. Qb4 {[%emt 0:00:14]} Qe6 {[%emt 0:00:29]} 44. Re1 {[%emt 0:00:06]} Qf6
{[%emt 0:00:07]} 45. Re4 {[%emt 0:00:18]} Kh6 {[%emt 0:00:14]} 46. Qd2 {
[%emt 0:00:07]} Qf7 {[%emt 0:00:15]} 47. Rxf4 {[%emt 0:00:02]} Qd7 {[%emt 0:00:
10]} 48. Rf7+ {[%emt 0:00:03]} Kg6 {[%emt 0:00:07]} 49. Rxd7 {[%emt 0:00:04]}
a5 {[%emt 0:00:05]} 50. Qd3+ {[%emt 0:00:03]} Kh6 {[%emt 0:00:08]} 51. Rd6+ {
[%emt 0:00:02]} Kg5 {[%emt 0:00:03]} 52. Rxb6 {[%emt 0:00:02]} a4 {[%emt 0:00:
02]} 53. Ra6 {[%emt 0:00:01]} a3 {[%emt 0:00:02]} 54. Rxa3 {[%emt 0:00:02]} g6
{[%emt 0:00:03]} 55. Qxd4 {[%emt 0:00:00]} Kh5 {[%emt 0:00:01]} 56. Rg3 {
[%emt 0:00:03]} g5 {[%emt 0:00:01]} 57. Qg4+ {[%emt 0:00:02]} Kg6 {[%emt 0:00:
01]} 58. Qxg5+ {[%emt 0:00:01]} Kh7 {[%emt 0:00:01]} 59. Qg7# {[%emt 0:00:04]
LimeFarActor won by checkmate} 1-0

[Event "Fast Chess"]
[Site "ChessKid.com"]
[Date "2020.04.07"]
[Round "2"]
[White "Hlinka, Patricia"]
[Black "Hlinka, Patrick"]
[Result "0-1"]
[ECO "A40"]
[WhiteElo "944"]
[BlackElo "1098"]
[PlyCount "30"]
[EventDate "2020.??.??"]
[TimeControl "600"]
[WhiteClock "0:09:05"]
[BlackClock "0:08:28"]

1. d4 {[%emt 0:00:00]} e5 {[%emt 0:00:00]} 2. dxe5 {[%emt 0:00:02]} Bc5 {
[%emt 0:00:01]} 3. e3 {[%emt 0:00:04]} f5 {[%emt 0:00:04]} 4. a4 {[%emt 0:00:
05]} f4 {[%emt 0:00:01]} 5. exf4 {[%emt 0:00:03]} Qh4 {[%emt 0:00:01]} 6. g3 {
[%emt 0:00:03]} Qe7 {[%emt 0:00:10]} 7. a5 {[%emt 0:00:09]} Bb4+ {[%emt 0:00:
04]} 8. Ke2 {[%emt 0:00:03]} d5 {[%emt 0:00:08]} 9. e6 {[%emt 0:00:08]} Bxe6 {
[%emt 0:00:03]} 10. f5 {[%emt 0:00:13]} Bxf5+ {[%emt 0:00:02]} 11. Kf3 {
[%emt 0:00:07]} h5 {[%emt 0:00:05]} 12. h4 {[%emt 0:00:03]} Bg4+ {[%emt 0:00:
02]} 13. Kf4 {[%emt 0:00:15]} Bxd1 {[%emt 0:00:02]} 14. c3 {[%emt 0:00:07]}
Qe4+ {[%emt 0:00:06]} 15. Kg5 {[%emt 0:00:11]} Be7# {[%emt 0:00:07]
GoldMusicalTaxi won by checkmate} 0-1

[Event "Fast Chess"]
[Site "ChessKid.com"]
[Date "2020.04.07"]
[Round "3"]
[White "Sasse, Gabriel"]
[Black "Georgiev, Maximilian"]
[Result "0-1"]
[ECO "C55"]
[WhiteElo "1271"]
[BlackElo "1360"]
[PlyCount "48"]
[EventDate "2020.??.??"]
[TimeControl "600"]
[WhiteClock "0:08:42"]
[BlackClock "0:08:48"]

1. e4 {[%emt 0:00:02]} e5 {[%emt 0:00:01]} 2. Nf3 {[%emt 0:00:01]} Nc6 {
[%emt 0:00:01]} 3. Nc3 {[%emt 0:00:01]} Nf6 {[%emt 0:00:02]} 4. Bc4 {[%emt 0:
00:01]} h6 {[%emt 0:00:02]} 5. h3 {[%emt 0:00:02]} Bb4 {[%emt 0:00:02]} 6. O-O
{[%emt 0:00:02]} d6 {[%emt 0:00:03]} 7. a3 {[%emt 0:00:02]} Ba5 {[%emt 0:00:01]
} 8. Ne1 {[%emt 0:00:03]} O-O {[%emt 0:00:03]} 9. Qf3 {[%emt 0:00:02]} a6 {
[%emt 0:00:10]} 10. d3 {[%emt 0:00:01]} b5 {[%emt 0:00:03]} 11. Bb3 {[%emt 0:
00:07]} Nd4 {[%emt 0:00:05]} 12. Qg3 {[%emt 0:00:02]} Re8 {[%emt 0:00:09]} 13.
Bxh6 {[%emt 0:00:02]} g6 {[%emt 0:00:02]} 14. Bg5 {[%emt 0:00:05]} Bxc3 {
[%emt 0:00:08]} 15. bxc3 {[%emt 0:00:03]} Ne2+ {[%emt 0:00:01]} 16. Kh1 {
[%emt 0:00:05]} Nxg3+ {[%emt 0:00:01]} 17. Kh2 {[%emt 0:00:05]} Nxf1+ {[%emt 0:
00:02]} 18. Kg1 {[%emt 0:00:03]} Nd2 {[%emt 0:00:03]} 19. Ba2 {[%emt 0:00:04]}
Ndxe4 {[%emt 0:00:04]} 20. Bxf6 {[%emt 0:00:02]} Nxf6 {[%emt 0:00:01]} 21. Rd1
{[%emt 0:00:05]} Bb7 {[%emt 0:00:03]} 22. Nf3 {[%emt 0:00:07]} Nh5 {[%emt 0:00:
07]} 23. Ng5 {[%emt 0:00:03]} Qxg5 {[%emt 0:00:02]} 24. Re1 {[%emt 0:00:03]}
Qxg2# {[%emt 0:00:02] TallSnazzyBall won by checkmate} 0-1

[Event "Fast Chess"]
[Site "ChessKid.com"]
[Date "2020.04.07"]
[Round "3"]
[White "Li, Patrick"]
[Black "Hlinka, Patricia"]
[Result "1-0"]
[ECO "B50"]
[WhiteElo "949"]
[BlackElo "936"]
[PlyCount "57"]
[EventDate "2020.??.??"]
[TimeControl "600"]
[WhiteClock "0:06:33"]
[BlackClock "0:06:53"]

1. e4 {[%emt 0:00:01]} e5 {[%emt 0:00:00]} 2. Nf3 {[%emt 0:00:01]} d6 {[%emt 0:
00:02]} 3. Nc3 {[%emt 0:00:02]} c5 {[%emt 0:00:03]} 4. Bc4 {[%emt 0:00:04]} b5
{[%emt 0:00:07]} 5. Ng5 {[%emt 0:00:07]} a6 {[%emt 0:00:00]} 6. Nxf7 {[%emt 0:
00:05]} Qg5 {[%emt 0:00:17]} 7. Nxg5 {[%emt 0:00:04]} h6 {[%emt 0:00:06]} 8.
Nf7 {[%emt 0:00:04]} bxc4 {[%emt 0:00:05]} 9. Nxh8 {[%emt 0:00:08]} h5 {
[%emt 0:00:14]} 10. Nd5 {[%emt 0:00:11]} Bb7 {[%emt 0:00:09]} 11. Nc7+ {
[%emt 0:00:02]} Kd8 {[%emt 0:00:08]} 12. Nxa8 {[%emt 0:00:15]} Bxa8 {[%emt 0:
00:09]} 13. Nf7+ {[%emt 0:00:02]} Kc8 {[%emt 0:00:06]} 14. Nxd6+ {[%emt 0:00:
04]} Kd7 {[%emt 0:00:06]} 15. Nxc4 {[%emt 0:00:02]} Bxe4 {[%emt 0:00:22]} 16.
Qxh5 {[%emt 0:00:07]} g6 {[%emt 0:00:05]} 17. Nb6+ {[%emt 0:00:13]} Kc7 {
[%emt 0:00:05]} 18. Qxe5+ {[%emt 0:00:05]} Bd6 {[%emt 0:00:07]} 19. Qe8 {
[%emt 0:00:07]} Kxb6 {[%emt 0:00:07]} 20. Qxe4 {[%emt 0:00:06]} g5 {[%emt 0:00:
06]} 21. Qe8 {[%emt 0:00:14]} g4 {[%emt 0:00:11]} 22. Qxg8 {[%emt 0:00:03]} c4
{[%emt 0:00:04]} 23. Qxg4 {[%emt 0:00:02]} c3 {[%emt 0:00:05]} 24. h4 {[%emt 0:
00:01]} cxb2 {[%emt 0:00:00]} 25. Bxb2 {[%emt 0:00:08]} a5 {[%emt 0:00:16]} 26.
h5 {[%emt 0:00:02]} Bf8 {[%emt 0:00:14]} 27. Qg6+ {[%emt 0:00:41]} Kb7 {
[%emt 0:00:09]} 28. Qg8 {[%emt 0:00:03]} Bd6 {[%emt 0:00:05]} 29. h6 {[%emt 0:
00:05] WideClassyQuiz won by resignation} 1-0

[Event "Fast Chess"]
[Site "ChessKid.com"]
[Date "2020.04.07"]
[Round "3"]
[White "Li, Tobias"]
[Black "Hlinka, Patrick"]
[Result "1-0"]
[ECO "C41"]
[WhiteElo "1221"]
[BlackElo "1092"]
[PlyCount "41"]
[EventDate "2020.??.??"]
[TimeControl "600"]
[WhiteClock "0:07:44"]
[BlackClock "0:08:06"]

1. e4 {[%emt 0:00:11]} e5 {[%emt 0:00:00]} 2. Nf3 {[%emt 0:00:02]} d6 {[%emt 0:
00:03]} 3. Nc3 {[%emt 0:00:02]} Bg4 {[%emt 0:00:03]} 4. Be2 {[%emt 0:00:11]}
Bxf3 {[%emt 0:00:16]} 5. Bxf3 {[%emt 0:00:02]} Qd7 {[%emt 0:00:11]} 6. Be2 {
[%emt 0:00:05]} Nc6 {[%emt 0:00:19]} 7. O-O {[%emt 0:00:03]} Nce7 {[%emt 0:00:
05]} 8. Bb5 {[%emt 0:00:03]} c6 {[%emt 0:00:03]} 9. Ba4 {[%emt 0:00:04]} Qe6 {
[%emt 0:00:07]} 10. d4 {[%emt 0:00:05]} exd4 {[%emt 0:00:03]} 11. Qxd4 {
[%emt 0:00:01]} b5 {[%emt 0:00:06]} 12. Bb3 {[%emt 0:00:11]} c5 {[%emt 0:00:03]
} 13. Qd2 {[%emt 0:00:09]} Qg6 {[%emt 0:00:06]} 14. a3 {[%emt 0:00:08]} Qf6 {
[%emt 0:00:03]} 15. Nxb5 {[%emt 0:00:04]} Rb8 {[%emt 0:00:15]} 16. Nxd6+ {
[%emt 0:00:08]} Kd8 {[%emt 0:00:14]} 17. e5 {[%emt 0:00:07]} Qh6 {[%emt 0:00:
09]} 18. Nxf7+ {[%emt 0:00:03]} Ke8 {[%emt 0:00:09]} 19. Nxh6 {[%emt 0:00:02]}
gxh6 {[%emt 0:00:02]} 20. Qf4 {[%emt 0:00:10]} Rd8 {[%emt 0:00:00]} 21. Qf3 {
[%emt 0:00:04] OnlyHungryKiwi won by resignation} 1-0

[Event "Fast Chess"]
[Site "ChessKid.com"]
[Date "2020.04.08"]
[Round "1"]
[White "Hlinka, Patrick"]
[Black "Georgiev, Maximilian"]
[Result "0-1"]
[ECO "C24"]
[WhiteElo "1087"]
[BlackElo "1384"]
[PlyCount "136"]
[EventDate "2020.??.??"]
[TimeControl "300+50"]
[WhiteClock "0:06:48"]
[BlackClock "0:05:50"]

1. e4 {[%emt 0:00:46]} e5 {[%emt 0:00:47]} 2. Bc4 {[%emt 0:00:46]} Nf6 {
[%emt 0:00:47]} 3. d3 {[%emt 0:00:49]} Nc6 {[%emt 0:00:47]} 4. Bg5 {[%emt 0:00:
47]} Bc5 {[%emt 0:00:50]} 5. Bxf6 {[%emt 0:00:47]} Qxf6 {[%emt 0:00:47]} 6. Nh3
{[%emt 0:00:49]} d6 {[%emt 0:00:48]} 7. Nc3 {[%emt 0:00:50]} Bxh3 {[%emt 0:00:
47]} 8. O-O {[%emt 0:00:50]} Qg6 {[%emt 0:00:52]} 9. Qf3 {[%emt 0:00:55]} Bd7 {
[%emt 0:01:00]} 10. Qg3 {[%emt 0:00:49]} Qxg3 {[%emt 0:00:48]} 11. hxg3 {
[%emt 0:00:51]} O-O {[%emt 0:00:46]} 12. Bd5 {[%emt 0:00:57]} Na5 {[%emt 0:00:
49]} 13. a3 {[%emt 0:00:54]} c6 {[%emt 0:00:49]} 14. b4 {[%emt 0:00:47]} cxd5 {
[%emt 0:00:46]} 15. bxc5 {[%emt 0:00:47]} d4 {[%emt 0:00:48]} 16. Nd5 {[%emt 0:
00:57]} dxc5 {[%emt 0:00:48]} 17. Nc7 {[%emt 0:00:50]} Rac8 {[%emt 0:00:50]}
18. Nd5 {[%emt 0:00:51]} Be6 {[%emt 0:00:52]} 19. Ne7+ {[%emt 0:00:50]} Kh8 {
[%emt 0:00:49]} 20. Nxc8 {[%emt 0:00:48]} Rxc8 {[%emt 0:00:47]} 21. Rfc1 {
[%emt 0:00:53]} h6 {[%emt 0:00:47]} 22. c3 {[%emt 0:00:47]} dxc3 {[%emt 0:00:
47]} 23. Rxc3 {[%emt 0:00:47]} Rd8 {[%emt 0:00:54]} 24. Rd1 {[%emt 0:00:49]}
Bg4 {[%emt 0:00:51]} 25. Rd2 {[%emt 0:00:49]} Nc4 {[%emt 0:00:49]} 26. Rxc4 {
[%emt 0:00:53]} Rc8 {[%emt 0:00:50]} 27. d4 {[%emt 0:00:48]} exd4 {[%emt 0:00:
50]} 28. f3 {[%emt 0:01:01]} Be6 {[%emt 0:00:51]} 29. Rcc2 {[%emt 0:00:49]} Bb3
{[%emt 0:00:53]} 30. Rb2 {[%emt 0:00:51]} a5 {[%emt 0:00:54]} 31. Rxb3 {
[%emt 0:00:50]} Rb8 {[%emt 0:00:51]} 32. Rbb2 {[%emt 0:00:56]} b5 {[%emt 0:00:
50]} 33. a4 {[%emt 0:00:48]} c4 {[%emt 0:00:50]} 34. axb5 {[%emt 0:00:49]} c3 {
[%emt 0:00:47]} 35. Ra2 {[%emt 0:00:50]} cxd2 {[%emt 0:00:47]} 36. Rxd2 {
[%emt 0:00:47]} Rxb5 {[%emt 0:00:48]} 37. Kf1 {[%emt 0:00:47]} Rb4 {[%emt 0:00:
52]} 38. Ke1 {[%emt 0:00:50]} a4 {[%emt 0:00:48]} 39. Kd1 {[%emt 0:00:47]} a3 {
[%emt 0:00:46]} 40. Kc1 {[%emt 0:00:47]} Ra4 {[%emt 0:00:46]} 41. Kb1 {[%emt 0:
00:49]} g5 {[%emt 0:00:49]} 42. f4 {[%emt 0:00:49]} g4 {[%emt 0:00:47]} 43. e5
{[%emt 0:00:52]} Kg8 {[%emt 0:00:49]} 44. f5 {[%emt 0:00:48]} Kf8 {[%emt 0:00:
49]} 45. e6 {[%emt 0:00:47]} fxe6 {[%emt 0:00:47]} 46. fxe6 {[%emt 0:00:47]}
Ke7 {[%emt 0:00:47]} 47. Re2 {[%emt 0:00:46]} Kd6 {[%emt 0:00:51]} 48. e7 {
[%emt 0:00:48]} Ra8 {[%emt 0:00:48]} 49. e8=Q {[%emt 0:00:49]} Rxe8 {[%emt 0:
00:48]} 50. Rxe8 {[%emt 0:00:48]} d3 {[%emt 0:00:48]} 51. Re1 {[%emt 0:00:50]}
Kc5 {[%emt 0:00:48]} 52. Rd1 {[%emt 0:00:47]} Kc4 {[%emt 0:00:47]} 53. Ka2 {
[%emt 0:00:50]} Kc3 {[%emt 0:00:48]} 54. Kb1 {[%emt 0:00:49]} a2+ {[%emt 0:00:
49]} 55. Kxa2 {[%emt 0:00:49]} Kc2 {[%emt 0:00:46]} 56. Rh1 {[%emt 0:00:50]} d2
{[%emt 0:00:47]} 57. Rg1 {[%emt 0:00:51]} d1=Q {[%emt 0:00:48]} 58. Rxd1 {
[%emt 0:00:47]} Kxd1 {[%emt 0:00:46]} 59. Ka3 {[%emt 0:00:47]} Ke2 {[%emt 0:00:
47]} 60. Kb3 {[%emt 0:00:47]} Kf2 {[%emt 0:00:46]} 61. Kc3 {[%emt 0:00:46]}
Kxg3 {[%emt 0:00:47]} 62. Kd3 {[%emt 0:00:46]} Kxg2 {[%emt 0:00:46]} 63. Ke4 {
[%emt 0:00:47]} g3 {[%emt 0:00:46]} 64. Kf4 {[%emt 0:00:46]} Kf2 {[%emt 0:00:
49]} 65. Kg4 {[%emt 0:00:49]} g2 {[%emt 0:00:46]} 66. Kh3 {[%emt 0:00:47]} g1=Q
{[%emt 0:00:47]} 67. Kh4 {[%emt 0:00:53]} Qg5+ {[%emt 0:00:48]} 68. Kh3 {
[%emt 0:00:53]} Qg3# {[%emt 0:00:46] TallSnazzyBall won by checkmate} 0-1

[Event "Fast Chess"]
[Site "ChessKid.com"]
[Date "2020.04.08"]
[Round "1"]
[White "Li, Tobias"]
[Black "Hlinka, Patricia"]
[Result "1-0"]
[ECO "C40"]
[WhiteElo "1235"]
[BlackElo "943"]
[PlyCount "25"]
[EventDate "2020.??.??"]
[TimeControl "300+50"]
[WhiteClock "0:04:26"]
[BlackClock "0:05:06"]

1. e4 {[%emt 0:00:46]} e5 {[%emt 0:00:47]} 2. Nf3 {[%emt 0:00:46]} f6 {[%emt 0:
00:50]} 3. Nxe5 {[%emt 0:00:51]} fxe5 {[%emt 0:00:50]} 4. Qh5+ {[%emt 0:00:47]}
Ke7 {[%emt 0:00:49]} 5. Qg5+ {[%emt 0:00:47]} Ke8 {[%emt 0:00:51]} 6. Qh5+ {
[%emt 0:00:49]} Ke7 {[%emt 0:00:58]} 7. Qxe5+ {[%emt 0:00:49]} Kf7 {[%emt 0:00:
50]} 8. Bc4+ {[%emt 0:00:50]} Kg6 {[%emt 0:00:50]} 9. Qf5+ {[%emt 0:01:03]} Kh6
{[%emt 0:00:52]} 10. d4+ {[%emt 0:00:47]} g5 {[%emt 0:01:12]} 11. h4 {[%emt 0:
00:52]} Kg7 {[%emt 0:00:52]} 12. h5 {[%emt 0:00:50]} h6 {[%emt 0:00:54]} 13.
Qf7# {[%emt 0:00:48] OnlyHungryKiwi won by checkmate} 1-0